bitfinex-derivatives/quotes_SOLF0:USTF0_20250428
["timestamp","ask_amount","ask_price","bid_price","bid_amount"]
[1745812322245,6.7324,148.49,148.44,6.7344]
[1745812323349,6.7328,148.48,148.44,6.7344]
[1745812323546,33.94185123,148.51,148.43,6.7348]
[1745812323846,6.7328,148.48,148.43,6.7348]
[1745812325350,7.22605123,148.49,148.42,31.4753]
[1745812325552,7.22605123,148.49,148.42,24.74]
[1745812326249,6.7339,148.46,148.42,24.74]
[1745812332551,6.7339,148.46,148.42,31.4754]
[1745812333254,6.7341,148.45,148.42,24.74]
[1745812333953,6.7338,148.46,148.42,24.74]
[1745812334756,7.22605123,148.49,148.42,24.74]
[1745812335354,6.734,148.46,148.42,24.74]
[1745812336453,24.72,148.52,148.45,7.22605123]
[1745812336646,24.72,148.52,148.47,7.22605123]
[1745812336852,6.7308,148.53,148.47,38.67885123]
[1745812337051,6.7308,148.53,148.47,31.94605123]
[1745812337256,30.7147,148.55,148.47,31.94605123]
[1745812337456,6.7307,148.53,148.5,4.6202551]
[1745812337750,2.0332,148.55,148.52,4.6202551]
[1745812337951,6.7294,148.56,148.53,4.6202551]
[1745812338158,63.49890931,148.57,148.53,4.6202551]
[1745812338558,68.11916441,148.57,148.53,4.6202551]
[1745812339049,4.6202551,148.56,148.51,29.3402551]
[1745812339253,6.73,148.54,148.51,29.3402551]
[1745812339454,6.73,148.54,148.51,24.72]
[1745812339858,6.7297,148.55,148.51,24.72]
[1745812341158,6.7288,148.57,148.51,31.93742863]
[1745812341659,63.49890931,148.62,148.55,7.21742863]
[1745812341958,6.7273,148.6,148.55,38.66692863]
[1745812342159,70.71633794,148.62,148.55,24.72]
[1745812342359,6.7278,148.59,148.55,24.72]
[1745812342657,2.1045,148.61,148.55,24.72]
[1745812342858,2.1045,148.61,148.55,31.93742863]
[1745812343961,6.7276,148.6,148.55,31.93742863]
[1745812344358,2.1045,148.61,148.55,31.93742863]
[1745812344561,6.7282,148.58,148.55,24.72]
[1745812345760,7.21742863,148.6,148.55,24.72]
[1745812346064,7.21742863,148.56,148.49,7.21742863]
[1745812346359,7.21742863,148.54,148.46,24.72]
[1745812346551,7.21742863,148.52,148.46,24.72]
[1745812347351,7.21742863,148.52,148.43,7.21742863]
[1745812347352,7.21742863,148.5,148.43,24.72]
[1745812347755,7.21742863,148.48,148.43,24.72]
[1745812349259,6.7335,148.47,148.43,24.72]
[1745812352564,6.7337,148.46,148.43,24.72]
[1745812352760,7.21742863,148.48,148.38,9.15602863]
[1745812352960,7.21742863,148.46,148.38,24.72]
[1745812353265,7.21742863,148.44,148.35,385.72]
[1745812353466,1.9955,148.43,148.35,385.72]
[1745812353661,1.9955,148.43,148.35,24.72]
[1745812353861,6.7358,148.42,148.36,6.738]
[1745812357467,6.736,148.41,148.36,6.738]
[1745812357669,1.9955,148.43,148.35,38.67592863]
[1745812357859,1.9955,148.43,148.35,31.93742863]
[1745812358061,6.7373,148.38,148.35,24.72]
[1745812359269,6.7377,148.37,148.35,24.72]
[1745812359467,6.7377,148.37,148.31,7.21742863]
[1745812359468,6.7377,148.37,148.32,24.72]
[1745812359770,6.7382,148.36,148.32,24.72]
[1745812360470,6.7378,148.37,148.32,31.46]
[1745812361569,6.7382,148.36,148.32,31.46]
[1745812362073,6.7378,148.37,148.32,31.46]
[1745812362367,24.72,148.39,148.33,7.21742863]
[1745812362569,2.1062,148.41,148.35,7.21742863]
[1745812362870,6.7369,148.39,148.35,13.95572863]
[1745812363170,2.1062,148.41,148.35,7.21742863]
[1745812363670,26.7355,148.43,148.35,7.21742863]
[1745812364372,6.7362,148.41,148.36,6.7378]
[1745812364670,6.7362,148.41,148.36,31.4778]
[1745812364871,26.7355,148.43,148.36,24.74]
[1745812365171,26.7355,148.43,148.37,7.21742863]
[1745812365469,6.7351,148.43,148.38,6.7369]
[1745812365765,24.74,148.45,148.39,7.21742863]
[1745812366666,6.7346,148.44,148.39,13.95392863]
[1745812367173,6.7346,148.44,148.39,7.21742863]
[1745812367470,6.7346,148.44,148.38,6.7371]
[1745812367875,6.7346,148.44,148.39,6.7368]
[1745812368073,24.74,148.45,148.37,9.29542863]
[1745812368376,24.74,148.45,148.39,7.21742863]
[1745812368569,31.4744,148.45,148.39,7.21742863]
[1745812369071,6.7345,148.44,148.39,7.21742863]
[1745812369574,6.7345,148.44,148.39,13.95392863]
[1745812369973,31.4742,148.45,148.39,7.21742863]
[1745812370875,31.4742,148.45,148.4,6.7363]
[1745812371175,6.7347,148.44,148.39,7.21742863]
[1745812372276,6.7347,148.44,148.39,13.95402863]
[1745812372575,6.7347,148.44,148.39,7.21742863]
[1745812372779,7.21742863,148.41,148.34,6.7387]
[1745812372982,24.72,148.44,148.35,7.21742863]
[1745812373174,24.72,148.44,148.35,31.93742863]
[1745812373875,6.7353,148.43,148.37,6.7374]
[1745812374978,24.72,148.44,148.36,6.738]
[1745812375481,6.7356,148.42,148.36,6.738]
[1745812375678,6.7356,148.42,148.37,6.7375]
[1745812377580,6.7352,148.43,148.38,6.7372]
[1745812378487,6.7355,148.42,148.38,6.7372]
[1745812380391,6.7355,148.42,148.35,31.93742863]
[1745812380593,6.7355,148.42,148.37,6.7375]
[1745812381295,6.7355,148.42,148.38,6.7372]
[1745812381492,31.4547,148.44,148.41,4.62700921]
[1745812381796,29.34700921,148.47,148.43,4.62700921]
[1745812382195,6.7337,148.46,148.43,4.62700921]
[1745812382992,6.7337,148.46,148.4,31.456]
[1745812382993,4.62700921,148.45,148.41,4.62700921]
[1745812383297,4.62700921,148.43,148.39,4.62700921]
[1745812383597,7.23021257,148.45,148.37,26.7657]
[1745812384090,7.23021257,148.45,148.37,24.72]
[1745812384287,7.23021257,148.43,148.34,31.95021257]
[1745812384489,2.0053,148.42,148.34,31.95021257]
[1745812384697,6.7367,148.4,148.35,6.7384]
[1745812385602,2.0053,148.42,148.34,31.95021257]
[1745812386096,2.0053,148.42,148.36,7.23021257]
[1745812386599,8.741,148.42,148.37,6.7375]
[1745812386794,2.0053,148.42,148.37,6.7375]
[1745812386994,2.0053,148.42,148.36,7.23021257]
[1745812387199,6.7362,148.41,148.36,13.96821257]
[1745812387399,26.7248,148.46,148.38,7.23021257]
[1745812387601,26.7248,148.46,148.39,24.72]
[1745812388394,24.72,148.46,148.4,7.23021257]
[1745812388600,2.031,148.48,148.42,7.23021257]
[1745812389102,2.031,148.48,148.43,6.7347]
[1745812389297,2.031,148.48,148.42,7.23021257]
[1745812389900,2.031,148.48,148.43,6.7349]
[1745812390199,2.031,148.48,148.42,7.23021257]
[1745812391805,6.7328,148.48,148.42,7.23021257]
[1745812392497,9.28511257,148.51,148.44,7.23021257]
[1745812392498,2.0549,148.51,148.44,7.23021257]
[1745812392802,26.6817,148.52,148.46,7.23021257]
[1745812392998,63.49890931,148.59,148.47,24.72]
[1745812393204,7.23021257,148.51,148.4,366.3057]
[1745812393402,7.23021257,148.51,148.41,31.95021257]
[1745812393596,6.733,148.48,148.41,31.95021257]
[1745812394401,6.733,148.48,148.43,6.735]
[1745812394798,6.7332,148.47,148.43,6.735]
[1745812394998,7.23021257,148.49,148.41,24.72]
[1745812395196,11.21751257,148.49,148.41,24.72]
[1745812395395,6.7333,148.47,148.41,24.72]
[1745812395903,6.7333,148.47,148.42,7.23021257]
[1745812396304,6.7333,148.47,148.43,6.735]
[1745812396801,6.7333,148.47,148.42,13.96561257]
[1745812397008,6.7337,148.46,148.42,13.96561257]
[1745812397304,3.9873,148.49,148.42,13.96561257]
[1745812397496,6.7333,148.47,148.42,13.96561257]
[1745812398306,6.7333,148.47,148.43,6.7349]
[1745812398805,6.7333,148.47,148.42,13.96551257]
[1745812399512,3.9873,148.49,148.43,6.7349]
[1745812401307,6.7335,148.47,148.43,6.7349]
[1745812403212,6.7338,148.46,148.41,24.72]
[1745812404009,6.7333,148.47,148.41,24.72]
[1745812404210,3.9873,148.49,148.42,7.23021257]
[1745812404409,1.9098,148.5,148.46,7.23021257]
[1745812404612,31.93021257,148.55,148.46,7.23021257]
[1745812405509,26.6444,148.58,148.5,7.23021257]
[1745812405711,26.6444,148.58,148.5,31.93021257]
[1745812405909,7.23021257,148.57,148.5,24.7]
[1745812406102,7.23021257,148.55,148.47,24.7]
[1745812406505,26.6444,148.58,148.47,24.7]
[1745812406506,7.23021257,148.53,148.47,24.7]
[1745812406709,1.9186,148.52,148.47,24.7]
[1745812407314,1.9186,148.52,148.44,24.7]
[1745812407917,6.7318,148.5,148.44,31.4341]
[1745812409311,6.7318,148.5,148.45,6.7341]
[1745812411415,7.23021257,148.51,148.44,24.7]
[1745812411625,7.23021257,148.49,148.44,24.7]
[1745812411819,24.7,148.5,148.41,24.7]
[1745812411820,7.23021257,148.47,148.41,24.7]
[1745812412419,2.0461,148.46,148.41,24.7]
[1745812413417,2.0461,148.46,148.38,24.7]
[1745812413721,6.0728,148.46,148.38,24.7]
[1745812414427,6.7353,148.43,148.38,31.4369]
[1745812416126,6.7346,148.44,148.39,6.7368]
[1745812416427,30.7728,148.46,148.39,6.7368]
[1745812416627,30.7728,148.46,148.38,31.4371]
[1745812416929,6.7353,148.43,148.38,31.4371]
[1745812417225,6.7353,148.43,148.38,24.7]
[1745812417628,6.7353,148.43,148.39,6.7367]
[1745812419530,6.7353,148.43,148.4,4.62617147]
[1745812422627,6.7353,148.43,148.39,11.36287147]
[1745812423129,6.7353,148.43,148.4,6.7363]
[1745812423330,11.36087147,148.44,148.4,6.7363]
[1745812425326,24.7,148.46,148.4,4.62617147]
[1745812425534,4.62617147,148.47,148.43,4.62617147]
[1745812426026,4.62617147,148.47,148.43,11.36077147]
[1745812426230,4.62617147,148.47,148.43,4.62617147]
[1745812426835,4.62617147,148.47,148.43,11.36107147]
[1745812427035,11.35897147,148.48,148.43,11.36107147]
[1745812428941,6.7332,148.47,148.43,4.62617147]
[1745812432840,6.7337,148.46,148.43,4.62617147]
[1745812433040,4.62617147,148.48,148.43,4.62617147]
[1745812434840,6.7334,148.47,148.43,4.62617147]
[1745812436441,6.7339,148.46,148.43,4.62617147]
[1745812437742,11.36007147,148.46,148.43,4.62617147]
[1745812442043,6.7339,148.46,148.43,4.62617147]
[1745812444343,4.62617147,148.48,148.43,4.62617147]
[1745812444551,4.62617147,148.49,148.44,4.62617147]
[1745812444741,10.48247147,148.51,148.46,4.62617147]
[1745812445243,6.7325,148.49,148.46,4.62617147]
[1745812445752,6.7335,148.47,148.44,4.62617147]
[1745812446549,6.7336,148.46,148.44,4.62617147]
[1745812446849,4.62617147,148.48,148.44,4.62617147]
[1745812447149,6.7336,148.47,148.44,4.62617147]
[1745812448350,6.7339,148.46,148.44,4.62617147]
[1745812448649,4.62617147,148.48,148.44,4.62617147]
[1745812448849,4.62617147,148.49,148.44,4.62617147]
[1745812450050,6.733,148.48,148.44,11.36037147]
[1745812450952,6.733,148.48,148.45,6.734]
[1745812452252,6.733,148.48,148.44,11.36057147]
[1745812453756,11.35857147,148.49,148.45,6.734]
[1745812453956,4.62617147,148.49,148.44,4.62617147]
[1745812454156,4.62617147,148.48,148.44,4.62617147]
[1745812454555,11.35897147,148.48,148.44,11.36057147]
[1745812455057,6.7328,148.48,148.44,11.36057147]
[1745812455657,6.7328,148.48,148.45,6.734]
[1745812456557,6.7328,148.48,148.44,11.36047147]
[1745812459656,5.8563,148.51,148.47,4.62617147]
[1745812459860,28.7681,148.55,148.5,4.62617147]
[1745812460059,6.7296,148.55,148.52,4.62617147]
[1745812460661,29.30617147,148.57,148.52,4.62617147]
[1745812460860,6.7294,148.56,148.52,11.35677147]
[1745812461260,6.7294,148.56,148.52,4.62617147]
[1745812461760,11.35557147,148.56,148.52,4.62617147]
[1745812462160,11.35557147,148.56,148.51,11.35737147]
[1745812462362,4.62617147,148.56,148.52,6.7309]
[1745812462761,36.03497147,148.57,148.52,11.35707147]
[1745812463061,36.03497147,148.57,148.53,11.35657147]
[1745812463262,36.03497147,148.57,148.53,4.62617147]
[1745812463661,31.4088,148.57,148.53,4.62617147]
[1745812464661,36.03497147,148.57,148.52,11.35677147]
[1745812466259,6.7291,148.56,148.52,11.35677147]
[1745812466465,4.62617147,148.56,148.51,4.62617147]
[1745812467264,6.7296,148.55,148.51,4.62617147]
[1745812467866,4.62617147,148.54,148.49,24.68]
[1745812468064,4.62617147,148.54,148.49,29.30617147]
[1745812468368,4.62617147,148.55,148.5,4.62617147]
[1745812468663,11.35597147,148.55,148.5,4.62617147]
[1745812468865,4.62617147,148.55,148.5,4.62617147]
[1745812469366,4.62617147,148.52,148.47,4.62617147]
[1745812469566,4.62617147,148.49,148.45,29.28617147]
[1745812470267,11.35867147,148.49,148.45,29.28617147]
[1745812470465,4.62617147,148.49,148.45,29.28617147]
[1745812470967,11.35857147,148.49,148.45,29.28617147]
[1745812471268,11.35857147,148.49,148.45,36.02027147]
[1745812472067,4.62617147,148.49,148.45,36.02027147]
[1745812473367,11.35857147,148.49,148.45,36.02027147]
[1745812476368,6.7327,148.48,148.45,29.28617147]
[1745812476566,11.35887147,148.48,148.45,24.66]
[1745812478066,11.35887147,148.48,148.44,4.62617147]
[1745812478268,11.35887147,148.48,148.44,11.36047147]
[1745812478566,11.35887147,148.48,148.44,4.62617147]
[1745812479965,11.35887147,148.48,148.44,11.36067147]
[1745812480270,6.7327,148.48,148.45,4.62617147]
[1745812480569,4.62617147,148.5,148.46,4.62617147]
[1745812480771,6.68307147,148.51,148.47,4.62617147]
[1745812481369,6.7321,148.5,148.47,4.62617147]
[1745812482567,6.7323,148.49,148.46,4.62617147]
[1745812482870,4.62617147,148.5,148.46,4.62617147]
[1745812483168,11.35807147,148.5,148.46,4.62617147]
[1745812484272,11.35807147,148.5,148.46,11.35967147]
[1745812485773,11.35807147,148.5,148.46,4.62617147]
[1745812486169,4.62617147,148.48,148.44,4.62617147]
[1745812486473,4.62617147,148.47,148.43,11.36107147]
[1745812486875,11.35957147,148.47,148.43,11.36107147]
[1745812487374,4.62617147,148.49,148.45,4.62617147]
[1745812487574,11.35867147,148.49,148.45,4.62617147]
[1745812488274,11.35817147,148.5,148.46,4.62617147]
[1745812489274,11.35817147,148.5,148.46,11.35947147]
[1745812489472,2.0569,148.51,148.49,4.62617147]
[1745812489680,29.30617147,148.55,148.5,4.62617147]
[1745812489977,8.637,148.54,148.51,4.62617147]
[1745812490176,8.637,148.54,148.5,4.62617147]
[1745812491171,8.637,148.54,148.5,11.35787147]
[1745812491676,8.637,148.54,148.51,4.62617147]
[1745812492673,1.9068,148.54,148.53,4.62617147]
[1745812492975,2.0519,148.57,148.53,4.62617147]
[1745812493177,8.7808,148.57,148.54,4.62617147]
[1745812493674,2.0519,148.57,148.54,4.62617147]
[1745812494880,4.62617147,148.55,148.51,4.62617147]
[1745812495176,4.62617147,148.54,148.49,4.62617147]
[1745812495781,4.62617147,148.53,148.49,11.35807147]
[1745812496678,4.62617147,148.53,148.49,6.7319]
[1745812498078,11.35657147,148.53,148.49,6.7319]
[1745812499378,11.35657147,148.53,148.5,6.7318]
[1745812500481,4.62617147,148.51,148.45,24.66]
[1745812500672,4.62617147,148.51,148.44,24.66]
[1745812500878,4.62617147,148.51,148.46,4.62617147]
[1745812501277,6.7319,148.5,148.46,11.35967147]
[1745812501581,4.62617147,148.51,148.44,24.66]
[1745812501582,4.62617147,148.51,148.47,4.62617147]
[1745812501778,29.28617147,148.54,148.49,4.62617147]
[1745812501983,4.62617147,148.55,148.51,4.62617147]
[1745812502276,4.62617147,148.56,148.52,4.62617147]
[1745812502482,31.33807147,148.57,148.53,4.62617147]
[1745812502683,26.7119,148.57,148.54,4.62617147]
[1745812502982,8.7808,148.57,148.54,4.62617147]
[1745812503678,6.7289,148.57,148.54,4.62617147]
[1745812503984,8.54487147,148.61,148.56,4.62617147]
[1745812504179,3.9187,148.61,148.57,4.62617147]
[1745812504477,10.6458,148.61,148.58,4.62617147]
[1745812505474,6.7271,148.61,148.57,6.7285]
[1745812505679,31.3865,148.62,148.55,7.21136217]
[1745812505883,1.9192,148.63,148.59,7.21136217]
[1745812506081,3.9503,148.65,148.59,7.21136217]
[1745812506382,6.7251,148.65,148.6,24.64]
[1745812506778,6.7251,148.65,148.6,31.367]
[1745812506978,2.098,148.67,148.61,7.21136217]
[1745812507885,8.8225,148.67,148.61,7.21136217]
[1745812508281,2.098,148.67,148.6,24.64]
[1745812508485,7.21136217,148.66,148.6,24.64]
[1745812508785,7.21136217,148.64,148.57,24.64]
[1745812508981,1.9283,148.63,148.57,24.64]
[1745812509286,6.7271,148.61,148.57,24.64]
[1745812509687,6.7274,148.6,148.57,24.64]
[1745812510382,6.7279,148.59,148.57,24.64]
[1745812510684,7.21136217,148.62,148.57,24.64]
[1745812510885,6.7276,148.6,148.57,24.64]
[1745812511085,1.9283,148.63,148.57,31.85136217]
[1745812511285,24.64,148.65,148.57,31.85136217]
[1745812511791,6.7267,148.62,148.57,31.85136217]
[1745812512087,24.64,148.65,148.57,31.85136217]
[1745812512285,6.7263,148.63,148.57,38.57966217]
[1745812512487,24.64,148.65,148.57,31.85136217]
[1745812513791,6.7267,148.62,148.57,38.57996217]
[1745812513979,24.64,148.65,148.57,31.85136217]
[1745812514488,6.7267,148.62,148.57,31.85136217]
[1745812515093,7.21136217,148.62,148.57,24.64]
[1745812515387,7.21136217,148.62,148.53,7.21136217]
[1745812515588,7.21136217,148.6,148.53,24.64]
[1745812516191,2.0173,148.59,148.53,24.64]
[1745812517595,6.7289,148.57,148.53,24.64]
[1745812518295,2.0173,148.59,148.53,31.85136217]
[1745812518792,7.21136217,148.58,148.53,24.64]
[1745812518991,2.0173,148.59,148.53,24.64]
[1745812519189,2.0173,148.59,148.53,31.3701]
[1745812519388,6.7282,148.58,148.53,24.64]
[1745812520187,8.7452,148.59,148.53,31.85136217]
[1745812520389,7.21136217,148.65,148.58,6.7281]
[1745812520597,6.7262,148.63,148.58,6.7281]
[1745812521496,6.7262,148.63,148.57,38.55986217]
[1745812521696,24.62,148.66,148.57,31.83136217]
[1745812521896,26.5592,148.66,148.57,31.83136217]
[1745812522297,6.726,148.63,148.57,38.55966217]
[1745812522991,1.9179,148.67,148.61,7.21136217]
[1745812523598,1.9179,148.67,148.61,13.93816217]
[1745812523799,1.9179,148.67,148.61,31.83136217]
[1745812524002,1.9179,148.67,148.61,24.62]
[1745812524196,9.12926217,148.67,148.61,24.62]
[1745812524496,7.21136217,148.65,148.57,7.21136217]
[1745812524798,7.21136217,148.65,148.58,24.62]
[1745812524991,6.7262,148.63,148.58,31.3481]
[1745812525496,6.7264,148.62,148.58,31.3481]
[1745812526707,6.7268,148.61,148.58,31.3481]
[1745812527000,6.7268,148.61,148.58,24.62]
[1745812527497,6.7273,148.6,148.58,24.62]
[1745812529000,9.12926217,148.67,148.58,24.62]
[1745812529302,24.62,148.65,148.58,24.62]
[1745812529503,6.7276,148.6,148.58,24.62]
[1745812529697,31.83136217,148.65,148.58,24.62]
[1745812530500,7.21136217,148.61,148.54,24.62]
[1745812530697,24.62,148.65,148.56,7.21136217]
[1745812531104,6.726,148.63,148.56,7.21136217]
[1745812532204,6.726,148.63,148.58,6.7281]
[1745812533607,6.7264,148.62,148.58,6.7281]
[1745812536906,6.7264,148.62,148.57,6.7286]
[1745812538411,6.7268,148.61,148.57,6.7286]
[1745812539813,6.7265,148.62,148.58,6.7281]
[1745812540310,6.7265,148.62,148.58,31.83136217]
[1745812541311,6.7261,148.63,148.59,6.7276]
[1745812542913,6.7256,148.64,148.6,6.7271]
[1745812544413,6.7252,148.65,148.61,6.7267]
[1745812545513,6.7255,148.64,148.6,13.93856217]
[1745812545713,7.21136217,148.66,148.58,24.62]
[1745812546016,6.726,148.63,148.59,6.7277]
[1745812547113,6.7256,148.64,148.59,6.7277]
[1745812547313,7.21136217,148.66,148.6,6.7272]
[1745812547511,6.7254,148.65,148.6,6.7272]
[1745812548810,7.21136217,148.66,148.6,6.7272]
[1745812549015,6.7256,148.64,148.6,6.7272]
[1745812549418,6.7256,148.64,148.59,6.7275]
[1745812549919,6.7256,148.64,148.6,6.7271]
[1745812550214,6.7256,148.64,148.58,31.83136217]
[1745812550514,6.726,148.63,148.58,31.83136217]
[1745812550715,6.726,148.63,148.59,6.7276]
[1745812550913,6.7265,148.62,148.58,31.83136217]
[1745812551215,6.7265,148.62,148.58,38.55936217]
[1745812552511,6.7262,148.63,148.59,6.7276]
[1745812553015,7.21136217,148.66,148.58,38.55956217]
[1745812553220,7.21136217,148.66,148.58,24.62]
[1745812553517,6.7269,148.61,148.58,24.62]
[1745812553717,7.21136217,148.66,148.58,24.62]
[1745812554216,7.21136217,148.66,148.58,31.3481]
[1745812555616,4.61451209,148.64,148.59,4.61451209]
[1745812555819,6.7264,148.63,148.59,4.61451209]
[1745812556214,4.61451209,148.65,148.6,4.61451209]
[1745812556414,33.09621209,148.67,148.62,4.61451209]
[1745812557120,28.4817,148.67,148.62,4.61451209]
[1745812557318,6.7248,148.66,148.62,4.61451209]
[1745812557521,6.7248,148.66,148.61,6.7265]
[1745812557819,6.7251,148.65,148.61,6.7265]
[1745812558020,26.5379,148.67,148.6,13.93397651]
[1745812558619,6.7251,148.65,148.6,13.93397651]
[1745812559723,6.7248,148.66,148.6,7.20687651]
[1745812559915,26.5379,148.67,148.6,7.20687651]
[1745812560317,26.5379,148.67,148.61,6.7265]
[1745812560822,6.7249,148.66,148.62,6.7261]
[1745812561015,6.7249,148.66,148.62,31.3261]
[1745812561421,8.6422,148.67,148.62,38.53297651]
[1745812561912,1.9179,148.67,148.62,38.53297651]
[1745812562618,6.7248,148.66,148.62,38.53297651]
[1745812562817,9.12477651,148.67,148.59,24.6]
[1745812563021,24.6,148.66,148.59,24.6]
[1745812563723,6.7262,148.63,148.59,24.6]
[1745812566123,6.7264,148.62,148.59,24.6]
[1745812569032,6.7269,148.61,148.59,24.6]
[1745812569326,2.0954,148.65,148.59,24.6]
[1745812570229,6.7257,148.64,148.6,6.7272]
[1745812570426,6.7257,148.64,148.59,24.6]
[1745812570828,6.7257,148.64,148.59,31.3276]
[1745812571125,6.7257,148.64,148.59,24.6]
[1745812571326,1.9179,148.67,148.62,7.20687651]
[1745812571630,1.9179,148.67,148.62,13.93287651]
[1745812571927,6.7242,148.67,148.63,6.7259]
[1745812572230,26.5469,148.71,148.64,7.20687651]
[1745812572532,26.5469,148.71,148.65,6.7247]
[1745812572831,26.5469,148.71,148.64,7.20687651]
[1745812573631,6.7235,148.69,148.64,13.93197651]
[1745812573831,26.5469,148.71,148.64,6.7251]
[1745812574331,26.5469,148.71,148.63,38.53267651]
[1745812574635,6.7244,148.67,148.63,31.80687651]
[1745812575434,6.7244,148.67,148.63,38.53277651]
[1745812575730,6.7244,148.67,148.63,31.80687651]
[1745812578237,6.7244,148.67,148.63,38.53277651]
[1745812579839,6.7246,148.66,148.63,31.80687651]
[1745812580137,26.5469,148.71,148.63,31.80687651]
[1745812580736,6.7239,148.68,148.63,38.53237651]
[1745812581136,6.7239,148.68,148.64,6.7254]
[1745812581631,6.7241,148.67,148.66,4.61033338]
[1745812583043,6.7238,148.68,148.66,4.61033338]
[1745812592946,6.7238,148.68,148.65,4.61033338]
[1745812594143,4.61033338,148.69,148.63,29.21033338]
[1745812594348,4.61033338,148.64,148.59,4.61033338]
[1745812594550,4.61033338,148.63,148.59,24.6]
[1745812595242,4.61033338,148.62,148.59,24.6]
[1745812595447,11.33703338,148.62,148.59,24.6]
[1745812596651,6.7267,148.62,148.59,24.6]
[1745812600053,6.7267,148.62,148.6,4.61033338]
[1745812600951,6.52353338,148.65,148.61,4.61033338]
[1745812601151,1.9132,148.65,148.62,4.61033338]
[1745812601552,6.7258,148.64,148.62,4.61033338]
[1745812601853,6.7258,148.64,148.61,4.61033338]
[1745812602152,6.726,148.63,148.61,4.61033338]
[1745812602450,1.9132,148.65,148.62,4.61033338]
[1745812603455,6.7258,148.64,148.62,4.61033338]
[1745812605951,29.21033338,148.67,148.62,4.61033338]
[1745812606151,6.7259,148.63,148.62,4.61033338]
[1745812606452,29.21033338,148.67,148.62,4.61033338]
[1745812606655,6.7254,148.65,148.62,4.61033338]
[1745812606856,29.21033338,148.67,148.62,4.61033338]
[1745812607554,6.7252,148.65,148.62,4.61033338]
[1745812612356,5.9325,148.71,148.63,4.61033338]
[1745812612563,4.61033338,148.7,148.66,4.61033338]
[1745812612759,35.12283338,148.71,148.66,4.61033338]
[1745812614064,6.7235,148.69,148.66,4.61033338]
[1745812614363,35.12283338,148.71,148.66,4.61033338]
[1745812615263,6.7237,148.68,148.66,4.61033338]
[1745812615665,5.9325,148.71,148.67,4.61033338]
[1745812615863,6.7228,148.7,148.67,4.61033338]
[1745812616062,5.9325,148.71,148.69,4.61033338]
[1745812616260,1.9599,148.71,148.69,4.61033338]
[1745812616457,6.7227,148.7,148.69,4.61033338]
[1745812617661,6.7227,148.7,148.68,4.61033338]
[1745812618069,8.6824,148.71,148.68,4.61033338]
[1745812618264,1.9599,148.71,148.68,4.61033338]
[1745812618669,6.723,148.7,148.68,4.61033338]
[1745812618870,4.61033338,148.73,148.69,4.61033338]
[1745812619067,4.61033338,148.74,148.69,4.61033338]
[1745812620272,6.7221,148.72,148.69,4.61033338]
[1745812620473,4.61033338,148.73,148.68,4.61033338]
[1745812620674,4.61033338,148.71,148.67,29.19033338]
[1745812620974,4.61033338,148.71,148.67,4.61033338]
[1745812621168,4.61033338,148.69,148.64,29.19033338]
[1745812621372,4.61033338,148.66,148.62,4.61033338]
[1745812621673,4.61033338,148.65,148.61,24.58]
[1745812622270,11.33553338,148.65,148.61,24.58]
[1745812622972,11.33553338,148.65,148.61,29.19033338]
[1745812622973,6.7252,148.65,148.61,29.19033338]
[1745812623178,4.61033338,148.67,148.63,4.61033338]
[1745812623673,6.7246,148.66,148.63,4.61033338]
[1745812625075,6.7256,148.64,148.61,24.58]
[1745812625272,11.33593338,148.64,148.61,24.58]
[1745812625576,6.7256,148.64,148.61,29.19033338]
[1745812628775,6.726,148.63,148.61,29.19033338]
[1745812629776,4.61033338,148.63,148.59,4.61033338]
[1745812630476,4.61033338,148.64,148.6,4.61033338]
[1745812631072,6.7265,148.62,148.6,4.61033338]
[1745812632679,6.7265,148.62,148.59,4.61033338]
[1745812635881,6.727,148.61,148.59,4.61033338]
[1745812636082,6.727,148.61,148.58,29.19033338]
[1745812636280,4.61033338,148.62,148.58,29.19033338]
[1745812637283,6.7274,148.6,148.58,29.19033338]
[1745812637583,4.61033338,148.62,148.58,29.19033338]